fUSD/lending_fUSD_20250606
["ID","MTS","AMOUNT","RATE_DAILY","PERIOD"]
[364631994,1749169510213,11278.423,0.0002,2]
[364631995,1749169510236,11278.423,0.0002,2]
[364631996,1749169510259,11278.423,0.0002,2]
[364631997,1749169510280,11278.423,0.0002,2]
[364631998,1749169510300,11278.423,0.0002,2]
[364631999,1749169510321,11278.423,0.0002,2]
[364632000,1749169510342,11278.423,0.0002,2]
[364632001,1749169510363,11278.423,0.0002,2]
[364632002,1749169510383,11278.423,0.0002,2]
[364632003,1749169510409,11278.423,0.0002,2]
[364632004,1749169510430,11278.423,0.0002,2]
[364632005,1749169510450,11278.423,0.0002,2]
[364632006,1749169510471,11278.423,0.0002,2]
[364632013,1749169562825,2993.4104114,8e-05,2]
[364632014,1749169618798,1222.0,0.0003561,120]
[364632047,1749169654622,10000.0,0.00018,2]
[364632048,1749169660993,300.0,0.000195,7]
[364632049,1749169676808,1502.98016838,0.00015,2]
[364632050,1749169678481,991.0,0.0003561,120]
[364632055,1749169718715,11093.659999,0.000151,2]
[364632097,1749169804465,300.0,0.00033904,120]
[364632111,1749169832083,-334.50747262,0.00019399,2]
[364632112,1749169832094,-865.49252738,0.00019399,2]
[364632113,1749169832103,-3914.50747262,0.000194,2]
[364632114,1749169832119,-3583.5,0.000194,2]
[364632115,1749169832130,-780.8729044,0.000194,2]
[364632122,1749169832197,-174.55327605,0.000194,2]
[364632126,1749169832210,-200.0,0.00019481,2]
[364632128,1749169832221,-600.0,0.000195,3]
[364632130,1749169832230,-700.0,0.000196,7]
[364632132,1749169832240,-300.0,0.00019649,2]
[364632134,1749169832249,-331.80899148,0.0001965,3]
[364632136,1749169832261,-268.19100852,0.0001965,3]
[364632138,1749169832271,-52.09940412,0.0001965,2]
[364632565,1749169837748,-197.90059588,0.0001965,2]
[364632568,1749169837757,-1100.0,0.000197,7]
[364632570,1749169837767,-1231.84661296,0.000197,2]
[364632571,1749169837777,-600.0,0.0001978,3]
[364632573,1749169837786,-250.0,0.0001978,2]
[364632576,1749169837796,-1500.0,0.000198,7]
[364632578,1749169837806,-354.0,0.00019899,2]
[364632580,1749169837816,-4568.24621845,0.000199,2]
[364632581,1749169837825,-1900.0,0.000199,7]
[364632582,1749169837836,-180.14448744,0.000199,3]
[364632583,1749169837845,-45244.07361396,0.000199,2]
[364632584,1749169837855,-261.25641174,0.000199,2]
[364632585,1749169837865,-239.56039489,0.000199,2]
[364632586,1749169837875,-12791.32180988,0.000199,2]
[364632587,1749169837884,-605.81140102,0.000199,2]
[364632588,1749169837894,-832.30306291,0.000199,2]
[364632589,1749169837903,-735.43589655,0.000199,2]
[364632590,1749169837913,-16062.36187922,0.000199,2]
[364632592,1749169837922,-6796.0,0.00019973,2]
[364632593,1749169837935,-170.82813195,0.00019973,2]
[364632595,1749169837944,-4255.0,0.00019973,2]
[364632597,1749169837953,-304.73070449,0.00019973,2]
[364632599,1749169837962,-173.31750785,0.00019973,2]
[364632601,1749169837971,-500.0,0.00019973,2]
[364632603,1749169837981,-370.93793116,0.00019973,2]
[364632605,1749169837991,-150.03,0.0001999,2]
[364632607,1749169838000,-150.03,0.0001999,2]
[364632609,1749169838009,-150.03,0.0001999,2]
[364632611,1749169838019,-150.03,0.0001999,2]
[364632613,1749169838028,-150.03,0.0001999,2]
[364632615,1749169838038,-150.03,0.0001999,2]
[364632617,1749169838047,-150.03,0.0001999,2]
[364632619,1749169838057,-150.03,0.0001999,2]
[364632621,1749169838066,-150.03,0.0001999,2]
[364632624,1749169838076,-150.03,0.0001999,2]
[364632626,1749169838085,-150.03,0.0001999,2]
[364632628,1749169838095,-150.03,0.0001999,2]
[364632630,1749169838104,-150.03,0.0001999,2]
[364632633,1749169838113,-150.03,0.0001999,2]
[364632635,1749169838123,-386.8133452,0.0001999,2]
[364632637,1749169838132,-150.03,0.0001999,2]
[364632639,1749169838142,-386.8133452,0.0001999,2]
[364632641,1749169838151,-150.03,0.0001999,2]
[364632643,1749169838161,-150.03,0.0001999,2]
[364632645,1749169838170,-150.03,0.0001999,2]
[364632647,1749169838180,-150.03,0.0001999,2]
[364632649,1749169838190,-150.03,0.0001999,2]
[364632651,1749169838199,-150.03,0.0001999,2]
[364632654,1749169838209,-150.03,0.0001999,2]
[364632655,1749169838220,-150.03,0.0001999,2]
[364632657,1749169838229,-150.03,0.0001999,2]
[364632660,1749169838239,-150.03,0.0001999,2]
[364632661,1749169838250,-150.03,0.0001999,2]
[364632663,1749169838259,-150.03,0.0001999,2]
[364632666,1749169838269,-150.03,0.0001999,2]
[364632682,1749169838414,-150.03,0.0001999,2]
[364632684,1749169838424,-150.03,0.0001999,2]
[364632686,1749169838435,-150.03,0.0001999,2]
[364632688,1749169838445,-150.03,0.0001999,2]
[364632690,1749169838454,-150.03,0.0001999,2]
[364632692,1749169838463,-150.03,0.0001999,2]
[364632694,1749169838472,-150.03,0.0001999,2]
[364632696,1749169838482,-150.03,0.0001999,2]
[364632698,1749169838491,-150.03,0.0001999,2]
[364632700,1749169838502,-386.8133452,0.0001999,2]
[364632703,1749169838512,-150.03,0.0001999,2]
[364632705,1749169838521,-150.03,0.0001999,2]
[364632706,1749169838531,-150.03,0.0001999,2]
[364632709,1749169838540,-150.03,0.0001999,2]
[364632711,1749169838549,-150.03,0.0001999,2]
[364632713,1749169838559,-150.03,0.0001999,2]
[364632715,1749169838568,-150.03,0.0001999,2]
[364632717,1749169838578,-150.03,0.0001999,2]
[364632719,1749169838588,-150.03,0.0001999,2]
[364632721,1749169838597,-150.03,0.0001999,2]
[364632723,1749169838607,-150.03,0.0001999,2]
[364632726,1749169838623,-150.03,0.0001999,2]
[364632728,1749169838633,-150.03,0.0001999,2]
[364632730,1749169838642,-150.03,0.0001999,2]
[364632732,1749169838652,-150.03,0.0001999,2]
[364632734,1749169838661,-150.03,0.0001999,2]
[364632736,1749169838671,-150.03,0.0001999,2]
[364632738,1749169838680,-150.03,0.0001999,2]
[364632740,1749169838691,-150.03,0.0001999,2]
[364632742,1749169838700,-150.03,0.0001999,2]
[364632744,1749169838711,-150.03,0.0001999,2]
[364632746,1749169838721,-150.03,0.0001999,2]
[364632747,1749169838731,-150.03,0.0001999,2]
[364632749,1749169838741,-150.03,0.0001999,2]
[364632752,1749169838751,-150.03,0.0001999,2]
[364632754,1749169838760,-150.03,0.0001999,2]
[364632756,1749169838769,-150.03,0.0001999,2]
[364632758,1749169838779,-150.03,0.0001999,2]
[364632760,1749169838789,-150.03,0.0001999,2]
[364632762,1749169838798,-150.03,0.0001999,2]
[364632764,1749169838808,-150.03,0.0001999,2]
[364632766,1749169838818,-150.03,0.0001999,2]
[364632768,1749169838828,-150.03,0.0001999,2]
[364632770,1749169838838,-150.03,0.0001999,2]
[364632772,1749169838848,-150.03,0.0001999,2]
[364632774,1749169838857,-150.03,0.0001999,2]
[364632776,1749169838866,-150.03,0.0001999,2]
[364632778,1749169838875,-150.03,0.0001999,2]
[364632780,1749169838884,-150.03,0.0001999,2]
[364632782,1749169838893,-150.03,0.0001999,2]
[364632784,1749169838903,-150.03,0.0001999,2]
[364632786,1749169838912,-150.03,0.0001999,2]
[364632788,1749169838922,-150.03,0.0001999,2]
[364632790,1749169838932,-150.03,0.0001999,2]
[364632792,1749169838942,-150.03,0.0001999,2]
[364632794,1749169838957,-150.03,0.0001999,2]
[364632796,1749169838975,-150.03,0.0001999,2]
[364632799,1749169838984,-303.40120378,0.00019999,2]
[364632801,1749169838993,-231.54575255,0.00019999,2]
[364632802,1749169839002,-300.0,0.00019999,2]
[364632804,1749169839012,-666.0,0.00019999,2]
[364632806,1749169839021,-155.154,0.00019999,2]
[364632808,1749169839030,-154.06021148,0.00019999,2]
[364632810,1749169839040,-500.0,0.00019999,2]
[364632812,1749169839049,-225.0,0.00019999,2]
[364632814,1749169839059,-172.22717232,0.00019999,2]
[364632816,1749169839068,-608.656428,0.00019999,2]
[364632818,1749169839077,-589.06124686,0.00019999,2]
[364632820,1749169839086,-363.573295,0.00019999,2]
[364632823,1749169839096,-500.0,0.00019999,2]
[364632825,1749169839107,-500.0,0.00019999,2]
[364632827,1749169839116,-163.65936413,0.00019999,2]
[364632829,1749169839125,-250.46804015,0.00019999,2]
[364632831,1749169839134,-175.3276281,0.00019999,2]
[364632833,1749169839144,-4000.0,0.0002,4]
[364632835,1749169839154,-3825607.874627,0.0002,2]
[364632837,1749169839164,-174.05535594,0.0002,2]
[364632839,1749169839173,-483.18067031,0.0002,2]
[364632841,1749169839185,-2412756.28995993,0.0002,2]
[364632843,1749169839195,-3012.72818297,0.0002,2]
[364632845,1749169839204,-324.42498351,0.0002,2]
[364632847,1749169839213,-1072.40091216,0.0002001,2]
[364632849,1749169839223,-1000.0,0.00020521,2]
[364632851,1749169839232,-500.0,0.00020588,2]
[364632853,1749169839241,-483.11312022,0.00020588,2]
[364632855,1749169839250,-500.0,0.00020588,2]
[364632857,1749169839259,-500.0,0.00020588,2]
[364632859,1749169839269,-150.0,0.00020881,7]
[364632861,1749169839278,-69038.36847545,0.000209,30]
[364632863,1749169839287,-4568.24621843,0.00021029,2]
[364632865,1749169839297,-1002.34897982,0.00021068,2]
[364632867,1749169839306,-505.67646133,0.00021136,2]
[364632869,1749169839315,-1000.0,0.00021136,2]
[364632871,1749169839325,-1000.0,0.00021136,2]
[364632873,1749169839338,-1680.0,0.00021239,2]
[364632874,1749169839347,-600.0,0.0002134,3]
[364632875,1749169839356,-261.25641171,0.00021422,2]
[364632876,1749169839366,-600.0,0.0002156,3]
[364632877,1749169839376,-250.0,0.0002156,2]
[364632878,1749169839386,-1500.0,0.00021684,2]
[364632879,1749169839395,-4568.24621843,0.00022159,2]
[364632880,1749169839404,-2000.0,0.00022232,2]
[364632881,1749169839414,-542.25110959,0.0002278,2]
[364632882,1749169839423,-261.25641171,0.00022945,2]
[364632883,1749169839433,-20000.0,0.00023,2]
[364632885,1749169839442,-6642.05616969,0.00023,60]
[364632887,1749169839453,-2351.0,0.00023252,2]
[364632889,1749169839463,-4568.24621843,0.00023288,2]
[364632890,1749169839472,-1076.23550415,0.00023988,2]
[364632893,1749169839482,-5000.00759018,0.00024,5]
[364632895,1749169839491,-4568.24621843,0.00024417,2]
[364632897,1749169839501,-261.25641171,0.00024467,2]
[364632899,1749169839511,-1267.46012307,0.000245,11]
[364632901,1749169839520,-1267.4601228,0.000245,11]
[364632903,1749169839529,-1267.4601228,0.000245,11]
[364632905,1749169839539,-1267.4601228,0.000245,11]
[364632907,1749169839549,-1267.4601228,0.000245,11]
[364632909,1749169839559,-1267.4601228,0.000245,11]
[364632911,1749169839569,-1267.4601228,0.000245,11]
[364632913,1749169839579,-1267.4601228,0.000245,11]
[364632915,1749169839589,-355259.971168,0.000248,2]
[364632917,1749169839598,-1267.4601228,0.00024866,12]
[364632919,1749169839608,-334070.502879,0.000249,2]
[364632921,1749169839618,-500.0,0.00024932,2]
[364632923,1749169839628,-1043.52967252,0.00025,2]
[364632925,1749169839638,-500.0,0.0002536,2]
[364632927,1749169839648,-500.0,0.0002536,2]
[364632929,1749169839659,-500.0,0.0002536,2]
[364632931,1749169839668,-500.0,0.0002536,2]
[364632933,1749169839678,-630.0,0.00025457,2]
[364632935,1749169839689,-1267.4601228,0.00025486,13]
[364632937,1749169839700,-4568.24621843,0.00025547,2]
[364632939,1749169839711,-1000.0,0.00025908,2]
[364632941,1749169839721,-500.0,0.00025908,2]
[364632943,1749169839731,-1000.0,0.00025908,2]
[364632945,1749169839741,-261.25641171,0.0002599,2]
[364632947,1749169839751,-1267.4601228,0.00026107,14]
[364632950,1749169839760,-1500.0,0.00026456,2]
[364632953,1749169839770,-1500.0,0.00026456,2]
[364632955,1749169839780,-12791.32180988,0.00026544,2]
[364632957,1749169839790,-16062.3618792,0.00026544,2]
[364632959,1749169839799,-605.81140101,0.00026544,2]
[364632961,1749169839809,-239.56039488,0.00026617,2]
[364632963,1749169839819,-303.72,0.00026624,2]
[364632965,1749169839828,-1132.19,0.00026644,2]
[364632967,1749169839837,-4568.24621843,0.00026676,2]
[364632969,1749169839847,-3305.81,0.00026721,30]
[364632971,1749169839856,-1267.4601228,0.00026728,15]
[364632973,1749169839866,-311.82,0.00026771,2]
[364632975,1749169839875,-344.645202,0.000268,2]
[364632977,1749169839884,-205.0,0.00026915,2]
[364632979,1749169839894,-157.86531077,0.00027,2]
[364632981,1749169839904,-2000.0,0.00027004,2]
[364632983,1749169839914,-976.35479255,0.00027004,2]
[364632985,1749169839924,-626.32,0.00027211,2]
[364632987,1749169839935,-1267.4601228,0.00027348,16]
[364632989,1749169839945,-500.0,0.00027397,2]
[364632991,1749169839955,-373.10478078,0.00027397,2]
[364632993,1749169839964,-500.0,0.00027397,2]
[364632995,1749169839974,-500.0,0.00027397,2]
[364632997,1749169839984,-500.0,0.00027397,2]
[364632999,1749169839993,-500.0,0.00027397,2]
[364633001,1749169840002,-500.0,0.00027397,2]
[364633003,1749169840012,-500.0,0.00027397,2]
[364633006,1749169840021,-500.0,0.00027397,2]
[364633008,1749169840031,-500.0,0.00027397,2]
[364633010,1749169840040,-500.0,0.00027397,2]
[364633012,1749169840049,-430.82664389,0.00027397,2]
[364633014,1749169840058,-364.045,0.00027397,2]
[364633016,1749169840068,-500.0,0.00027397,2]
[364633018,1749169840077,-500.0,0.00027397,2]
[364633020,1749169840086,-500.0,0.00027397,2]
[364633022,1749169840096,-500.0,0.00027397,2]
[364633024,1749169840105,-500.0,0.00027397,2]
[364633026,1749169840115,-500.0,0.00027397,2]
[364633028,1749169840124,-500.0,0.00027397,2]
[364633030,1749169840134,-500.0,0.00027397,2]
[364633032,1749169840143,-500.0,0.00027397,2]
[364633034,1749169840153,-500.0,0.00027397,2]
[364633036,1749169840162,-337.27199876,0.00027397,2]
[364633038,1749169840171,-500.0,0.00027397,2]
[364633040,1749169840180,-500.0,0.00027397,2]
[364633042,1749169840190,-500.0,0.00027397,2]
[364633044,1749169840199,-360.37061733,0.00027397,2]
[364633046,1749169840208,-500.0,0.00027397,2]
[364633048,1749169840218,-500.0,0.00027397,2]
[364633050,1749169840227,-500.0,0.00027397,2]
[364633052,1749169840237,-500.0,0.00027397,2]
[364633054,1749169840248,-500.0,0.00027397,2]
[364633056,1749169840258,-500.0,0.00027397,2]
[364633058,1749169840267,-500.0,0.00027397,2]
[364633060,1749169840276,-500.0,0.00027397,2]
[364633062,1749169840286,-500.0,0.00027397,2]
[364633064,1749169840296,-500.0,0.00027397,2]
[364633066,1749169840305,-500.0,0.00027397,2]
[364633068,1749169840315,-529.06993027,0.00027397,2]
[364633070,1749169840326,-500.0,0.00027397,2]
[364633072,1749169840338,-500.0,0.00027397,2]
[364633074,1749169840348,-500.0,0.00027397,2]
[364633076,1749169840357,-500.0,0.00027397,2]
[364633078,1749169840367,-791.62,0.00027397,2]
[364633080,1749169840376,-261.25641171,0.00027512,2]
[364633082,1749169840386,-2500.0,0.00027552,5]
[364633084,1749169840395,-311.82,0.00027775,2]
[364633086,1749169840405,-4568.24621843,0.00027805,2]
[364633088,1749169840415,-175.58,0.00027922,2]
[364633089,1749169840425,-1267.4601228,0.00027969,18]
[364633091,1749169840435,-150.0,0.00028,60]
[364633093,1749169840445,-5500.6867028,0.0002802,2]
[364633095,1749169840454,-3000.0,0.000281,5]
[364633096,1749169840463,-1267.4601228,0.0002859,19]
[364633098,1749169840472,-3500.0,0.00028648,5]
[364633099,1749169840482,-311.82,0.00028778,2]
[364633100,1749169840492,-200.0,0.000288,2]
[364633101,1749169840502,-668.0967,0.00028838,2]
[364633103,1749169840511,-1000.0,0.0002891,2]
[364633105,1749169840521,-150.0,0.00028914,2]
[364633107,1749169840530,-4568.24621843,0.00028935,2]
[364633108,1749169840540,-868.33,0.00028938,2]
[364633109,1749169840550,-150.0,0.00028984,2]
[364633110,1749169840560,-7142.856,0.00029032,2]
[364633111,1749169840570,-207.4,0.00029032,2]
[364633112,1749169840580,-261.25641171,0.00029035,2]
[364633113,1749169840590,-23127.0,0.00029049,2]
[364633114,1749169840599,-500.0,0.00029068,7]
[364633115,1749169840609,-900.0,0.00029068,7]
[364633116,1749169840619,-151.88,0.0002911,2]
[364633117,1749169840629,-205.0,0.0002912,5]
[364633118,1749169840640,-152.0,0.00029137,3]
[364633119,1749169840650,-1961.58275095,0.00029196,5]
[364633120,1749169840660,-1267.4601228,0.0002921,20]
[364633122,1749169840670,-1000.0,0.00029334,2]
[364633123,1749169840680,-1000.0,0.00029335,2]
[364633124,1749169840691,-1000.0,0.00029335,2]
[364633125,1749169840701,-1000.0,0.00029335,2]
[364633126,1749169841018,-1000.0,0.00029335,2]
[364633127,1749169841053,-1000.0,0.00029335,2]
[364633128,1749169841070,-1000.0,0.00029335,2]
[364633129,1749169841084,-1000.0,0.00029335,2]
[364633130,1749169841096,-1000.0,0.00029335,2]
[364633131,1749169841105,-1000.0,0.00029335,2]
[364633132,1749169841115,-1000.0,0.00029335,2]
[364633133,1749169841125,-1000.0,0.00029335,2]
[364633134,1749169841135,-1000.0,0.00029335,2]
[364633135,1749169841144,-699.0,0.00029335,2]
[364633136,1749169841154,-205.60041799,0.00029342,30]
[364633137,1749169841164,-626.32,0.00029475,2]
[364633138,1749169841176,-205.60041799,0.00029479,30]
[364633139,1749169841191,-150.0,0.00029507,2]
[364633140,1749169841201,-205.60041799,0.00029589,30]
[364633141,1749169841211,-152.0,0.0002968,4]
[364633142,1749169841221,-150.0,0.0002969,2]
[364633143,1749169841231,-205.60041799,0.00029699,30]
[364633144,1749169841240,-311.82,0.00029782,2]
[364633145,1749169841250,-1267.4601228,0.00029831,21]
[364633146,1749169841261,-205.60041799,0.00029836,30]
[364633147,1749169841270,-206.0,0.0002986,2]
[364633148,1749169841280,-3417.76222299,0.0002987,2]
[364633149,1749169841290,-1155.60456,0.0002988,2]
[364633150,1749169841300,-900.0,0.0002989,7]
[364633151,1749169841309,-300.0,0.000299,10]
[364633152,1749169841320,-1041.7,0.000299,2]
[364633153,1749169841329,-150.0,0.00029903,2]
[364633154,1749169841342,-205.60041799,0.00029945,30]
[364633155,1749169841352,-150.0,0.00029992,2]
[364633156,1749169841362,-10000.0,0.0003,2]
[364633157,1749169841373,-160.0,0.0003,14]
[364633158,1749169841383,-1041.7,0.0003,2]
[364633159,1749169841392,-1155.60456,0.0003004,2]
[364633160,1749169841401,-1000.0,0.00030054,2]
[364633161,1749169841412,-1393.9948,0.00030054,2]
[364633162,1749169841422,-205.60041799,0.00030055,30]
[364633163,1749169841433,-4568.24621843,0.00030064,2]
[364633164,1749169841443,-1041.7,0.000301,2]
[364633165,1749169841453,-1041.7,0.000301,2]
[364633166,1749169841462,-6054.43,0.00030136,7]
[364633167,1749169841471,-6054.43,0.00030136,7]
[364633168,1749169841481,-6054.43,0.00030136,7]
[364633169,1749169841491,-6054.43,0.00030136,7]
[364633170,1749169841501,-6054.43,0.00030136,7]
[364633171,1749169841510,-6054.43,0.00030136,7]
[364633172,1749169841520,-6054.43,0.00030136,7]
[364633173,1749169841530,-6054.43,0.00030136,7]
[364633174,1749169841540,-6054.43,0.00030136,7]
[364633175,1749169841550,-6054.43,0.00030136,7]
[364633176,1749169841560,-6054.43,0.00030136,7]
[364633177,1749169841570,-6054.43,0.00030136,7]
[364633178,1749169841579,-6054.43,0.00030136,7]
[364633179,1749169841590,-6054.43,0.00030136,7]
[364633180,1749169841599,-6054.43,0.00030136,7]
[364633181,1749169841609,-6054.43,0.00030136,7]
[364633182,1749169841619,-151.0,0.00030136,2]
[364633183,1749169841629,-800.0,0.00030136,2]
[364633184,1749169841639,-800.0,0.00030136,2]
[364633185,1749169841649,-800.0,0.00030136,2]
[364633186,1749169841660,-151.0,0.00030136,2]
[364633187,1749169841670,-800.0,0.00030136,2]
[364633188,1749169841680,-800.0,0.00030136,2]
[364633189,1749169841692,-800.0,0.00030136,2]
[364633190,1749169841702,-800.0,0.00030136,2]
[364633191,1749169841712,-800.0,0.00030136,2]
[364633192,1749169841721,-800.0,0.00030136,2]
[364633193,1749169841731,-800.0,0.00030136,2]
[364633194,1749169841741,-800.0,0.00030136,2]
[364633195,1749169841749,-800.0,0.00030136,2]
[364633196,1749169841759,-800.0,0.00030136,2]
[364633197,1749169841768,-800.0,0.00030136,2]
[364633198,1749169841778,-500.0,0.00030136,2]
[364633199,1749169841787,-800.0,0.00030136,2]
[364633200,1749169841797,-500.0,0.00030136,2]
[364633201,1749169841806,-500.0,0.00030136,2]
[364633202,1749169841815,-500.0,0.00030136,2]
[364633203,1749169841825,-500.0,0.00030136,2]
[364633204,1749169841834,-500.0,0.00030136,2]
[364633205,1749169841843,-500.0,0.00030136,2]
[364633206,1749169841853,-500.0,0.00030136,2]
[364633207,1749169841863,-156.0,0.00030136,2]
[364633208,1749169841872,-500.0,0.00030136,2]
[364633209,1749169841882,-500.0,0.00030136,2]
[364633210,1749169841891,-500.0,0.00030136,2]
[364633211,1749169841900,-151.0,0.00030136,2]
[364633212,1749169841910,-300.0,0.00030137,80]
[364633213,1749169841920,-230.15537853,0.00030137,60]
[364633214,1749169841930,-287.86961829,0.00030137,5]
[364633215,1749169841939,-150.0,0.00030138,2]
[364633216,1749169841947,-4120.17975203,0.00030153,2]
[364633217,1749169841956,-666.0,0.00030163,10]
[364633218,1749169841966,-500.0,0.00030163,7]
[364633219,1749169841975,-500.0,0.00030163,7]
[364633220,1749169841985,-500.0,0.00030163,7]
[364633221,1749169841995,-500.0,0.00030163,7]
[364633222,1749169842004,-282.86029831,0.00030163,7]
[364633223,1749169842014,-6054.43,0.00030163,7]
[364633224,1749169842023,-6054.43,0.00030163,7]
[364633225,1749169842033,-6054.43,0.00030163,7]
[364633226,1749169842042,-6054.43,0.00030163,7]
[364633227,1749169842052,-6054.43,0.00030163,7]
[364633228,1749169842062,-6054.43,0.00030163,7]
[364633229,1749169842071,-6054.43,0.00030163,7]
[364633230,1749169842081,-6054.43819424,0.00030163,7]
[364633231,1749169842091,-153.84655,0.00030164,7]
[364633232,1749169842100,-1423.442674,0.00030164,7]
[364633233,1749169842110,-480.0,0.00030164,7]
[364633234,1749169842119,-1288.57938,0.00030164,7]
[364633235,1749169842129,-480.0,0.00030164,7]
[364633236,1749169842138,-525.54,0.00030164,7]
[364633237,1749169842148,-480.0,0.00030164,7]
[364633238,1749169842157,-480.0,0.00030164,7]
[364633239,1749169842167,-480.0,0.00030164,7]
[364633240,1749169842177,-186.5960358,0.00030164,7]
[364633241,1749169842187,-480.0,0.00030164,7]
[364633242,1749169842196,-480.0,0.00030164,7]
[364633243,1749169842206,-480.0,0.00030164,7]
[364633244,1749169842215,-480.0,0.00030164,7]
[364633245,1749169842225,-480.0,0.00030164,7]
[364633246,1749169842234,-480.0,0.00030164,7]
[364633247,1749169842243,-480.0,0.00030164,7]
[364633248,1749169842253,-480.0,0.00030164,7]
[364633249,1749169842261,-597.23078099,0.00030164,7]
[364633250,1749169842270,-458.88,0.00030164,7]
[364633251,1749169842280,-480.0,0.00030164,7]
[364633252,1749169842289,-480.0,0.00030164,7]
[364633253,1749169842298,-480.0,0.00030164,7]
[364633254,1749169842308,-270.54704866,0.00030164,7]
[364633255,1749169842317,-480.0,0.00030164,7]
[364633256,1749169842329,-480.0,0.00030164,7]
[364633257,1749169842339,-480.0,0.00030164,7]
[364633258,1749169842348,-577.19,0.00030164,7]
[364633259,1749169842357,-480.0,0.00030164,7]
[364633260,1749169842367,-480.0,0.00030164,7]
[364633261,1749169842376,-480.0,0.00030164,7]
[364633262,1749169842386,-480.0,0.00030164,7]
[364633263,1749169842395,-480.0,0.00030164,7]
[364633264,1749169842405,-480.0,0.00030164,7]
[364633265,1749169842415,-480.0,0.00030164,7]
[364633266,1749169842424,-480.0,0.00030164,7]
[364633267,1749169842433,-480.0,0.00030164,7]
[364633268,1749169842443,-370.0,0.00030164,7]
[364633269,1749169842452,-480.70985335,0.00030164,7]
[364633270,1749169842461,-480.0,0.00030164,7]
[364633271,1749169842471,-480.0,0.00030164,7]
[364633272,1749169842488,-480.0,0.00030164,7]
[364633273,1749169842500,-480.0,0.00030164,7]
[364633275,1749169842510,-543.3,0.00030164,7]
[364633276,1749169842520,-560.45,0.00030164,7]
[364633277,1749169842530,-480.0,0.00030164,7]
[364633278,1749169842540,-480.0,0.00030164,7]
[364633279,1749169842551,-480.0,0.00030164,7]
[364633280,1749169842561,-480.0,0.00030164,7]
[364633281,1749169842571,-480.0,0.00030164,7]
[364633282,1749169842581,-151.47796068,0.00030164,7]
[364633283,1749169842590,-480.0,0.00030164,7]
[364633284,1749169842601,-480.0,0.00030164,7]
[364633285,1749169842611,-480.0,0.00030164,7]
[364633286,1749169842622,-246.18,0.00030164,7]
[364633287,1749169842632,-480.0,0.00030164,7]
[364633288,1749169842642,-480.0,0.00030164,7]
[364633289,1749169842653,-480.0,0.00030164,7]
[364633290,1749169842662,-480.0,0.00030164,7]
[364633291,1749169842673,-480.0,0.00030164,7]
[364633292,1749169842683,-624.38,0.00030164,30]
[364633293,1749169842695,-480.0,0.00030164,7]
[364633294,1749169842705,-480.0,0.00030164,7]
[364633295,1749169842715,-480.0,0.00030164,7]
[364633296,1749169842725,-222.24746586,0.00030164,7]
[364633297,1749169842736,-564.7,0.00030164,7]
[364633298,1749169842746,-668.56,0.00030164,7]
[364633299,1749169842755,-480.0,0.00030164,7]
[364633300,1749169842765,-480.0,0.00030164,7]
[364633301,1749169842775,-480.0,0.00030164,7]
[364633302,1749169842785,-480.0,0.00030164,7]